fUST/lending_fUST_20250615
["ID","MTS","AMOUNT","RATE_DAILY","PERIOD"]
[365886338,1749971442879,-460.0,0.00022465,4]
[365886339,1749971442888,-460.0,0.00022465,4]
[365886340,1749971442897,-431.12056351,0.00022465,4]
[365886341,1749971442906,-460.0,0.00022465,4]
[365886342,1749971442915,-151.0,0.00022465,2]
[365886343,1749971442925,-151.0,0.00022465,2]
[365886344,1749971442936,-460.0,0.00022465,4]
[365886345,1749971442945,-570.09,0.00022465,4]
[365886346,1749971442954,-460.0,0.00022465,4]
[365886347,1749971442965,-151.0,0.00022465,7]
[365886350,1749971442974,-210.785039,0.00022465,7]
[365886352,1749971442983,-151.0,0.00022465,7]
[365886354,1749971442992,-522.62763877,0.00022465,4]
[365886355,1749971443002,-423.28597389,0.00022465,4]
[365886357,1749971443012,-366.78305919,0.00022465,4]
[365886360,1749971443022,-191.16713,0.00022465,7]
[365886361,1749971443031,-191.16713,0.00022465,7]
[365886363,1749971443043,-460.0,0.00022465,2]
[365886365,1749971443052,-460.0,0.00022465,4]
[365886367,1749971443061,-460.0,0.00022465,4]
[365886369,1749971443071,-460.0,0.00022465,4]
[365886371,1749971443081,-664.89,0.00022465,4]
[365886372,1749971443090,-151.0,0.00022465,7]
[365886374,1749971443100,-154.858186,0.00022465,7]
[365886376,1749971443110,-460.0,0.00022465,4]
[365886377,1749971443119,-460.0,0.00022465,4]
[365886378,1749971443130,-151.0,0.00022465,7]
[365886379,1749971443140,-507.34,0.00022465,4]
[365886380,1749971443150,-537.7,0.00022465,4]
[365886381,1749971443160,-3287.64,0.00022465,4]
[365886382,1749971443171,-460.0,0.00022465,4]
[365886383,1749971443181,-806.68,0.00022465,4]
[365886384,1749971443191,-460.0,0.00022465,4]
[365886385,1749971443201,-673.17,0.00022465,4]
[365886386,1749971443211,-151.0,0.00022465,7]
[365886387,1749971443221,-152.72351,0.00022465,7]
[365886389,1749971443231,-460.0,0.00022465,4]
[365886391,1749971443240,-460.0,0.00022465,4]
[365886393,1749971443251,-3566.18,0.00022465,4]
[365886395,1749971443265,-460.0,0.00022465,4]
[365886396,1749971443274,-646.69,0.00022465,4]
[365886398,1749971443284,-2878.77,0.00022465,4]
[365886400,1749971443294,-151.0,0.00022465,7]
[365886402,1749971443304,-151.0,0.00022465,7]
[365886404,1749971443314,-280.946612,0.00022465,7]
[365886406,1749971443324,-460.0,0.00022465,4]
[365886408,1749971443333,-3318.73,0.00022465,4]
[365886410,1749971443343,-460.0,0.00022465,4]
[365886412,1749971443352,-596.54,0.00022465,4]
[365886414,1749971443362,-460.0,0.00022465,4]
[365886416,1749971443371,-1382.73,0.00022465,4]
[365886418,1749971443380,-1494.36,0.00022465,4]
[365886419,1749971443391,-1463.96,0.00022465,4]
[365886420,1749971443401,-460.0,0.00022465,4]
[365886421,1749971443410,-181.931067,0.00022465,7]
[365886422,1749971443421,-460.0,0.00022465,4]
[365886423,1749971443431,-460.0,0.00022465,4]
[365886424,1749971443441,-1164.79,0.00022465,4]
[365886425,1749971443450,-181.931067,0.00022465,7]
[365886426,1749971443459,-460.0,0.00022465,4]
[365886427,1749971443468,-813.93,0.00022465,4]
[365886428,1749971443478,-460.0,0.00022465,4]
[365886429,1749971443488,-460.0,0.00022465,4]
[365886430,1749971443497,-460.0,0.00022465,4]
[365886431,1749971443507,-460.0,0.00022465,4]
[365886433,1749971443517,-460.0,0.00022465,4]
[365886435,1749971443527,-1673.73,0.00022465,4]
[365886436,1749971443536,-460.0,0.00022465,4]
[365886438,1749971443546,-460.0,0.00022465,4]
[365886439,1749971443555,-460.0,0.00022465,4]
[365886440,1749971443564,-540.26,0.00022465,4]
[365886441,1749971443574,-460.0,0.00022465,4]
[365886442,1749971443584,-460.0,0.00022465,4]
[365886443,1749971443593,-472.89,0.00022465,4]
[365886444,1749971443603,-460.0,0.00022465,4]
[365886445,1749971443612,-460.0,0.00022465,4]
[365886446,1749971443622,-639.51,0.00022465,4]
[365886447,1749971443632,-1874.55,0.00022465,4]
[365886448,1749971443641,-460.0,0.00022465,4]
[365886449,1749971443651,-574.36211615,0.00022465,4]
[365886450,1749971443660,-460.0,0.00022465,4]
[365886451,1749971443670,-2300.06,0.00022465,4]
[365886452,1749971443679,-460.0,0.00022465,4]
[365886453,1749971443689,-460.0,0.00022465,4]
[365886454,1749971443698,-701.62,0.00022465,4]
[365886455,1749971443708,-250.0,0.00022465,4]
[365886456,1749971443717,-460.0,0.00022465,4]
[365886457,1749971443726,-518.86142643,0.00022465,4]
[365886458,1749971443736,-460.0,0.00022465,4]
[365886459,1749971443746,-529.36,0.00022465,4]
[365886460,1749971443755,-1688.36,0.00022465,4]
[365886461,1749971443765,-151.0,0.00022465,7]
[365886462,1749971443774,-1078.04,0.00022465,4]
[365886463,1749971443783,-989.65,0.00022465,4]
[365886464,1749971443792,-460.0,0.00022465,4]
[365886465,1749971443804,-2313.64,0.00022465,4]
[365886466,1749971443814,-460.0,0.00022465,4]
[365886467,1749971443823,-3537.21,0.00022465,4]
[365886468,1749971443833,-2354.21,0.00022465,4]
[365886469,1749971443842,-379.44324504,0.00022465,4]
[365886470,1749971443852,-235.48078112,0.00022483,2]
[365886471,1749971443861,-504.40342295,0.00022521,2]
[365886472,1749971443871,-151.0,0.00022537,7]
[365886473,1749971443880,-151.0,0.00022537,7]
[365886474,1749971443890,-151.0,0.00022537,7]
[365886475,1749971443899,-653.0,0.00022537,2]
[365886476,1749971443908,-2160.0,0.00022537,2]
[365886477,1749971443917,-151.0,0.00022575,7]
[365886478,1749971443927,-151.0,0.00022575,7]
[365886479,1749971443936,-151.0,0.00022575,7]
[365886480,1749971443946,-151.0,0.00022575,7]
[365886481,1749971443955,-151.0,0.00022575,7]
[365886482,1749971443964,-151.0,0.00022575,7]
[365886483,1749971443973,-151.0,0.00022575,7]
[365886484,1749971443983,-151.0,0.00022575,7]
[365886485,1749971443992,-500.0,0.00022575,2]
[365886486,1749971444001,-2069.72210476,0.0002259,7]
[365886487,1749971444010,-12151.2,0.000226,5]
[365886488,1749971444020,-2069.72210476,0.00022728,7]
[365886489,1749971444029,-460.0,0.00022739,4]
[365886490,1749971444039,-151.0,0.00022739,7]
[365886491,1749971444049,-151.0,0.00022739,7]
[365886492,1749971444059,-460.0,0.00022739,4]
[365886493,1749971444068,-460.0,0.00022739,4]
[365886494,1749971444078,-460.0,0.00022739,4]
[365886495,1749971444087,-460.0,0.00022739,4]
[365886496,1749971444097,-263.65779169,0.00022739,4]
[365886497,1749971444107,-156.233307,0.00022739,7]
[365886498,1749971444116,-232.49433046,0.00022739,4]
[365886499,1749971444126,-151.0,0.00022739,7]
[365886500,1749971444135,-612.83,0.00022739,4]
[365886501,1749971444145,-524.01,0.00022739,4]
[365886502,1749971444154,-501.51307386,0.00022739,4]
[365886503,1749971444163,-460.0,0.00022739,4]
[365886504,1749971444172,-733.7,0.00022739,4]
[365886505,1749971444182,-460.0,0.00022739,4]
[365886506,1749971444191,-151.0,0.00022739,7]
[365886507,1749971444200,-154.216368,0.00022739,7]
[365886508,1749971444210,-460.0,0.00022739,4]
[365886509,1749971444219,-460.0,0.00022739,4]
[365886510,1749971444228,-233.29,0.00022739,4]
[365886511,1749971444238,-151.0,0.00022739,2]
[365886512,1749971444247,-207.2588249,0.00022739,4]
[365886513,1749971444260,-151.0,0.00022739,2]
[365886514,1749971444269,-570.09,0.00022739,4]
[365886515,1749971444279,-328.93121441,0.00022739,4]
[365886516,1749971444288,-151.0,0.00022739,7]
[365886517,1749971444298,-151.0,0.00022739,7]
[365886518,1749971444307,-191.16713,0.00022739,7]
[365886519,1749971444316,-191.16713,0.00022739,7]
[365886520,1749971444326,-460.0,0.00022739,2]
[365886521,1749971444337,-460.0,0.00022739,4]
[365886522,1749971444346,-460.0,0.00022739,4]
[365886523,1749971444356,-460.0,0.00022739,4]
[365886524,1749971444365,-664.89,0.00022739,4]
[365886525,1749971444375,-151.0,0.00022739,7]
[365886526,1749971444384,-460.0,0.00022739,4]
[365886527,1749971444394,-460.0,0.00022739,4]
[365886528,1749971444404,-180.541871,0.00022739,7]
[365886529,1749971444414,-507.34,0.00022739,4]
[365886530,1749971444424,-537.7,0.00022739,4]
[365886531,1749971444434,-3287.64,0.00022739,4]
[365886532,1749971444443,-460.0,0.00022739,4]
[365886533,1749971444452,-806.68,0.00022739,4]
[365886534,1749971444462,-460.0,0.00022739,4]
[365886535,1749971444471,-673.17,0.00022739,4]
[365886536,1749971444480,-151.0,0.00022739,7]
[365886537,1749971444490,-460.0,0.00022739,4]
[365886538,1749971444499,-460.0,0.00022739,4]
[365886539,1749971444509,-3566.18,0.00022739,4]
[365886540,1749971444518,-460.0,0.00022739,4]
[365886541,1749971444528,-646.69,0.00022739,4]
[365886542,1749971444538,-2878.77,0.00022739,4]
[365886543,1749971444547,-151.0,0.00022739,7]
[365886544,1749971444556,-151.0,0.00022739,7]
[365886545,1749971444566,-508.07987483,0.00022739,4]
[365886546,1749971444575,-3318.73,0.00022739,4]
[365886547,1749971444584,-460.0,0.00022739,4]
[365886548,1749971444593,-596.54,0.00022739,4]
[365886549,1749971444603,-460.0,0.00022739,4]
[365886550,1749971444612,-1382.73,0.00022739,4]
[365886551,1749971444622,-1494.36,0.00022739,4]
[365886552,1749971444631,-151.0,0.00022739,7]
[365886553,1749971444640,-1463.96,0.00022739,4]
[365886554,1749971444649,-460.0,0.00022739,4]
[365886555,1749971444658,-460.0,0.00022739,4]
[365886556,1749971444669,-181.931067,0.00022739,7]
[365886557,1749971444679,-1164.79,0.00022739,4]
[365886558,1749971444688,-181.931067,0.00022739,7]
[365886559,1749971444698,-460.0,0.00022739,4]
[365886560,1749971444707,-813.93,0.00022739,4]
[365886561,1749971444716,-460.0,0.00022739,4]
[365886562,1749971444726,-460.0,0.00022739,4]
[365886563,1749971444735,-332.14254253,0.00022739,4]
[365886564,1749971444745,-460.0,0.00022739,4]
[365886565,1749971444754,-184.413066,0.00022739,7]
[365886566,1749971444763,-460.0,0.00022739,4]
[365886567,1749971444772,-1673.73,0.00022739,4]
[365886568,1749971444782,-460.0,0.00022739,4]
[365886569,1749971444791,-460.0,0.00022739,4]
[365886570,1749971444800,-460.0,0.00022739,4]
[365886571,1749971444810,-540.26,0.00022739,4]
[365886572,1749971444819,-460.0,0.00022739,4]
[365886573,1749971444828,-460.0,0.00022739,4]
[365886574,1749971444837,-189.105303,0.00022739,7]
[365886575,1749971444847,-472.89,0.00022739,4]
[365886576,1749971444856,-460.0,0.00022739,4]
[365886577,1749971444866,-460.0,0.00022739,4]
[365886578,1749971444875,-639.51,0.00022739,4]
[365886579,1749971444885,-1874.55,0.00022739,4]
[365886580,1749971444894,-460.0,0.00022739,4]
[365886581,1749971444904,-460.0,0.00022739,4]
[365886582,1749971444913,-2300.06,0.00022739,4]
[365886583,1749971444923,-460.0,0.00022739,4]
[365886584,1749971444933,-460.0,0.00022739,4]
[365886585,1749971444943,-701.62,0.00022739,4]
[365886586,1749971444952,-151.0,0.00022739,7]
[365886587,1749971444962,-460.0,0.00022739,4]
[365886588,1749971444971,-151.0,0.00022739,7]
[365886589,1749971444980,-153.134164,0.00022739,7]
[365886590,1749971444989,-460.0,0.00022739,4]
[365886591,1749971444998,-151.0,0.00022739,7]
[365886592,1749971445007,-159.789916,0.00022739,7]
[365886593,1749971445017,-1688.36,0.00022739,4]
[365886594,1749971445026,-529.36,0.00022739,4]
[365886595,1749971445035,-151.0,0.00022739,7]
[365886596,1749971445044,-1078.04,0.00022739,4]
[365886597,1749971445054,-989.65,0.00022739,4]
[365886598,1749971445063,-460.0,0.00022739,4]
[365886599,1749971445072,-2313.64,0.00022739,4]
[365886600,1749971445081,-460.0,0.00022739,4]
[365886601,1749971445091,-3537.21,0.00022739,4]
[365886602,1749971445307,-151.0,0.00022739,7]
[365886603,1749971445317,-2354.21,0.00022739,4]
[365886604,1749971445326,-2069.72210476,0.00022866,8]
[365886605,1749971445335,-420.0,0.00022913,2]
[365886606,1749971445345,-4024.12,0.00022936,2]
[365886607,1749971445354,-604.606277,0.00022964,2]
[365886608,1749971445363,-365.0707398,0.00022986,2]
[365886609,1749971445372,-500.0,0.00022992,2]
[365886610,1749971445382,-5000.0,0.00022996,2]
[365886611,1749971445391,-10000.0,0.00023,12]
[365886612,1749971445400,-151.0,0.00023,7]
[365886613,1749971445410,-151.0,0.00023,7]
[365886614,1749971445419,-181.931067,0.00023,7]
[365886615,1749971445430,-181.931067,0.00023,7]
[365886616,1749971445440,-2069.72210476,0.00023003,8]
[365886617,1749971445450,-151.0,0.00023013,7]
[365886618,1749971445459,-166.14952116,0.00023013,4]
[365886619,1749971445469,-151.0,0.00023013,7]
[365886620,1749971445478,-151.0,0.00023013,7]
[365886621,1749971445487,-460.0,0.00023013,4]
[365886622,1749971445497,-460.0,0.00023013,4]
[365886623,1749971445506,-300.0,0.00023013,4]
[365886624,1749971445516,-460.0,0.00023013,4]
[365886625,1749971445525,-151.0,0.00023013,7]
[365886627,1749971445535,-151.0,0.00023013,7]
[365886629,1749971445544,-151.0,0.00023013,7]
[365886631,1749971445554,-612.83,0.00023013,4]
[365886633,1749971445564,-524.01,0.00023013,4]
[365886635,1749971445574,-460.0,0.00023013,4]
[365886637,1749971445583,-733.7,0.00023013,4]
[365886638,1749971445593,-360.0,0.00023013,4]
[365886640,1749971445603,-151.0,0.00023013,7]
[365886642,1749971445612,-467.82904102,0.00023013,4]
[365886643,1749971445623,-322.56125188,0.00023013,4]
[365886644,1749971445632,-151.0,0.00023013,2]
[365886645,1749971445761,-151.0,0.00023013,2]
[365886646,1749971445771,-570.09,0.00023013,4]
[365886647,1749971445781,-151.0,0.00023013,7]
[365886649,1749971445790,-151.0,0.00023013,7]
[365886651,1749971445799,-191.16713,0.00023013,7]
[365886653,1749971445809,-191.16713,0.00023013,7]
[365886655,1749971445819,-460.0,0.00023013,2]
[365886657,1749971445829,-472.51180908,0.00023013,4]
[365886659,1749971445838,-460.0,0.00023013,4]
[365886661,1749971445847,-664.89,0.00023013,4]
[365886663,1749971445857,-151.0,0.00023013,7]
[365886665,1749971445866,-460.0,0.00023013,4]
[365886666,1749971445875,-460.0,0.00023013,4]
[365886668,1749971445885,-507.34,0.00023013,4]
[365886670,1749971445894,-537.7,0.00023013,4]
[365886672,1749971445904,-3287.64,0.00023013,4]
[365886674,1749971445913,-460.0,0.00023013,4]
[365886676,1749971445923,-806.68,0.00023013,4]
[365886677,1749971445932,-460.0,0.00023013,4]
[365886678,1749971445942,-673.17,0.00023013,4]
[365886680,1749971445952,-460.0,0.00023013,4]
[365886682,1749971445961,-460.0,0.00023013,4]
[365886684,1749971445970,-3566.18,0.00023013,4]
[365886686,1749971445980,-430.0,0.00023013,4]
[365886688,1749971445989,-646.69,0.00023013,4]
[365886689,1749971445998,-2878.77,0.00023013,4]
[365886690,1749971446008,-151.0,0.00023013,7]
[365886692,1749971446018,-3318.73,0.00023013,4]
[365886694,1749971446027,-460.0,0.00023013,4]
[365886696,1749971446037,-596.54,0.00023013,4]
[365886698,1749971446046,-460.0,0.00023013,4]
[365886700,1749971446055,-1382.73,0.00023013,4]
[365886702,1749971446065,-1494.36,0.00023013,4]
[365886704,1749971446074,-1463.96,0.00023013,4]
[365886706,1749971446083,-460.0,0.00023013,4]
[365886708,1749971446093,-460.0,0.00023013,4]
[365886710,1749971446102,-1164.79,0.00023013,4]
[365886712,1749971446111,-400.0,0.00023013,4]
[365886714,1749971446121,-813.93,0.00023013,4]
[365886716,1749971446131,-460.0,0.00023013,4]
[365886718,1749971446140,-270.0,0.00023013,4]
[365886720,1749971446150,-460.0,0.00023013,4]
[365886722,1749971446159,-460.0,0.00023013,4]
[365886724,1749971446168,-1673.73,0.00023013,4]
[365886725,1749971446179,-460.0,0.00023013,4]
[365886726,1749971446189,-460.0,0.00023013,4]
[365886727,1749971446198,-460.0,0.00023013,4]
[365886728,1749971446207,-540.26,0.00023013,4]
[365886729,1749971446216,-460.0,0.00023013,4]
[365886730,1749971446225,-460.0,0.00023013,4]
[365886731,1749971446234,-472.89,0.00023013,4]
[365886732,1749971446243,-460.0,0.00023013,4]
[365886733,1749971446252,-460.0,0.00023013,4]
[365886734,1749971446265,-639.51,0.00023013,4]
[365886735,1749971446274,-1874.55,0.00023013,4]
[365886736,1749971446284,-460.0,0.00023013,4]
[365886737,1749971446293,-460.0,0.00023013,4]
[365886738,1749971446303,-2300.06,0.00023013,4]
[365886739,1749971446313,-460.0,0.00023013,4]
[365886740,1749971446322,-460.0,0.00023013,4]
[365886741,1749971446332,-701.62,0.00023013,4]
[365886742,1749971446342,-151.0,0.00023013,7]
[365886743,1749971446351,-460.0,0.00023013,4]
[365886744,1749971446360,-151.0,0.00023013,7]
[365886745,1749971446370,-460.0,0.00023013,4]
[365886746,1749971446379,-151.0,0.00023013,7]
[365886747,1749971446388,-1688.36,0.00023013,4]
[365886748,1749971446397,-529.36,0.00023013,4]
[365886749,1749971446406,-1078.04,0.00023013,4]
[365886750,1749971446415,-989.65,0.00023013,4]
[365886751,1749971446428,-460.0,0.00023013,4]
[365886752,1749971446437,-2313.64,0.00023013,4]
[365886753,1749971446446,-460.0,0.00023013,4]
[365886754,1749971446455,-3537.21,0.00023013,4]
[365886755,1749971446463,-151.0,0.00023013,7]
[365886756,1749971446473,-2354.21,0.00023013,4]
[365886757,1749971446482,-162.60086731,0.00023068,2]
[365886758,1749971446491,-730.1414796,0.00023096,2]
[365886759,1749971446500,-1375.777657,0.00023106,3]
[365886760,1749971446510,-500.0,0.00023112,2]
[365886761,1749971446519,-151.0,0.00023141,7]
[365886762,1749971446529,-2069.72210476,0.00023141,8]
[365886763,1749971446539,-500.0,0.00023167,2]
[365886764,1749971446548,-500.0,0.00023213,2]
[365886765,1749971446558,-2069.72210476,0.00023279,8]
[365886766,1749971446567,-151.0,0.00023287,7]
[365886768,1749971446577,-291.84010597,0.00023287,4]
[365886770,1749971446587,-460.0,0.00023287,4]
[365886772,1749971446596,-460.0,0.00023287,4]
[365886774,1749971446606,-151.0,0.00023287,7]
[365886776,1749971446615,-151.0,0.00023287,7]
[365886778,1749971446624,-151.0,0.00023287,7]
[365886780,1749971446635,-612.83,0.00023287,4]
[365886782,1749971446644,-524.01,0.00023287,4]
[365886784,1749971446653,-460.0,0.00023287,4]
[365886786,1749971446662,-733.7,0.00023287,4]
[365886788,1749971446672,-151.0,0.00023287,7]
[365886790,1749971446681,-151.0,0.00023287,7]
[365886792,1749971446690,-151.0,0.00023287,2]
[365886793,1749971446699,-151.0,0.00023287,2]
[365886795,1749971446709,-570.09,0.00023287,4]
[365886797,1749971446719,-151.0,0.00023287,7]
[365886798,1749971446728,-191.16713,0.00023287,7]
[365886799,1749971446738,-191.16713,0.00023287,7]
[365886800,1749971446747,-460.0,0.00023287,2]
[365886802,1749971446758,-460.0,0.00023287,4]
[365886804,1749971446767,-664.89,0.00023287,4]
[365886805,1749971446776,-151.0,0.00023287,7]
[365886806,1749971446786,-290.0,0.00023287,4]
[365886807,1749971446795,-460.0,0.00023287,4]
[365886808,1749971446804,-507.34,0.00023287,4]
[365886809,1749971446814,-537.7,0.00023287,4]
[365886810,1749971446823,-3287.64,0.00023287,4]
[365886811,1749971446833,-460.0,0.00023287,4]
[365886812,1749971446842,-806.68,0.00023287,4]
[365886813,1749971446851,-460.0,0.00023287,4]
[365886814,1749971446860,-673.17,0.00023287,4]
[365886815,1749971446870,-151.0,0.00023287,7]
[365886816,1749971446879,-460.0,0.00023287,4]
[365886817,1749971446889,-460.0,0.00023287,4]
[365886818,1749971446898,-3566.18,0.00023287,4]
[365886819,1749971446908,-646.69,0.00023287,4]
[365886820,1749971446917,-2878.77,0.00023287,4]
[365886821,1749971446927,-151.0,0.00023287,7]
[365886822,1749971446936,-151.0,0.00023287,7]
[365886823,1749971446946,-3318.73,0.00023287,4]
[365886824,1749971446956,-460.0,0.00023287,4]
[365886825,1749971446966,-596.54,0.00023287,4]
[365886826,1749971446975,-460.0,0.00023287,4]
[365886827,1749971446984,-1382.73,0.00023287,4]
[365886828,1749971446994,-1494.36,0.00023287,4]
[365886829,1749971447003,-1463.96,0.00023287,4]
[365886830,1749971447012,-562.54432323,0.00023287,4]
[365886831,1749971447021,-460.0,0.00023287,4]
[365886832,1749971447032,-181.931067,0.00023287,7]
[365886833,1749971447042,-1164.79,0.00023287,4]
[365886834,1749971447051,-181.931067,0.00023287,7]
[365886835,1749971447060,-813.93,0.00023287,4]
[365886836,1749971447070,-449.65525983,0.00023287,4]
[365886837,1749971447079,-298.62,0.00023287,4]
[365886838,1749971447088,-460.0,0.00023287,4]
[365886839,1749971447098,-1673.73,0.00023287,4]
[365886840,1749971447107,-460.0,0.00023287,4]
[365886841,1749971447116,-460.0,0.00023287,4]
[365886842,1749971447126,-466.04675364,0.00023287,4]
[365886843,1749971447135,-540.26,0.00023287,4]
[365886844,1749971447144,-460.0,0.00023287,4]
[365886845,1749971447154,-460.0,0.00023287,4]
[365886846,1749971447163,-472.89,0.00023287,4]
[365886847,1749971447172,-460.0,0.00023287,4]
[365886848,1749971447181,-460.0,0.00023287,4]
[365886849,1749971447190,-639.51,0.00023287,4]
[365886850,1749971447200,-1874.55,0.00023287,4]
[365886851,1749971447209,-460.0,0.00023287,4]
[365886852,1749971447218,-460.0,0.00023287,4]
[365886853,1749971447227,-2300.06,0.00023287,4]
[365886854,1749971447236,-460.0,0.00023287,4]
[365886855,1749971447246,-460.0,0.00023287,4]
[365886856,1749971447258,-701.62,0.00023287,4]
[365886857,1749971447269,-151.0,0.00023287,7]
[365886858,1749971447278,-460.0,0.00023287,4]
[365886859,1749971447288,-166.916215,0.00023287,7]
[365886860,1749971447297,-460.0,0.00023287,4]
[365886861,1749971447306,-151.0,0.00023287,7]
[365886862,1749971447316,-1688.36,0.00023287,4]
[365886863,1749971447325,-529.36,0.00023287,4]
[365886864,1749971447335,-1078.04,0.00023287,4]
[365886865,1749971447344,-989.65,0.00023287,4]
[365886866,1749971447353,-460.0,0.00023287,4]
[365886867,1749971447362,-2313.64,0.00023287,4]
[365886868,1749971447372,-460.0,0.00023287,4]
[365886869,1749971447382,-3537.21,0.00023287,4]
[365886870,1749971447391,-151.0,0.00023287,7]
[365886871,1749971447401,-2354.21,0.00023287,4]
[365886872,1749971447410,-500.0,0.00023288,2]
[365886873,1749971447419,-1780.51,0.000233,7]
[365886874,1749971447429,-738.43,0.000233,7]
[365886875,1749971447438,-500.0,0.00023308,2]
[365886876,1749971447448,-500.0,0.00023335,2]
[365886877,1749971447457,-500.0,0.00023359,2]
[365886878,1749971447466,-168.0,0.00023364,2]
[365886879,1749971447476,-171.15458873,0.00023365,2]
[365886880,1749971447486,-500.0,0.00023377,2]
[365886881,1749971447495,-3000.0,0.000234,2]
[365886882,1749971447505,-3000.0,0.0002341,2]
[365886883,1749971447515,-2069.72210476,0.00023417,9]
[365886884,1749971447524,-3000.0,0.0002342,2]
[365886885,1749971447533,-3000.0,0.0002343,2]
[365886886,1749971447543,-3000.0,0.0002344,2]
[365886887,1749971447553,-500.0,0.00023442,2]
[365886888,1749971447562,-3000.0,0.0002345,2]
[365886889,1749971447571,-500.0,0.00023457,2]
[365886890,1749971447581,-90319.21364689,0.0002346,2]
[365886891,1749971447591,-3000.0,0.0002346,2]
[365886892,1749971447601,-153.681451,0.0002346,7]
[365886893,1749971447611,-151.0,0.0002346,7]
[365886894,1749971447621,-151.0,0.0002346,7]
[365886895,1749971447630,-184.30823,0.0002346,7]
[365886896,1749971447640,-151.0,0.0002346,7]
[365886897,1749971447649,-151.0,0.0002346,7]
[365886898,1749971447659,-249.469447,0.0002346,7]
[365886899,1749971447668,-151.0,0.0002346,7]
[365886900,1749971447678,-151.0,0.0002346,7]
[365886901,1749971447687,-151.0,0.0002346,2]
[365886902,1749971447697,-151.0,0.0002346,2]
[365886903,1749971447706,-151.0,0.0002346,7]
[365886904,1749971447715,-191.16713,0.0002346,7]
[365886905,1749971447724,-191.16713,0.0002346,7]
[365886906,1749971447734,-151.0,0.0002346,7]
[365886907,1749971447743,-151.0,0.0002346,7]
[365886908,1749971447752,-151.0,0.0002346,7]
[365886909,1749971447762,-151.0,0.0002346,7]
[365886910,1749971447771,-181.931067,0.0002346,7]
[365886911,1749971447781,-181.931067,0.0002346,7]
[365886912,1749971447790,-151.0,0.0002346,7]
[365886913,1749971447799,-151.0,0.0002346,7]
[365886914,1749971447809,-151.0,0.0002346,7]
[365886915,1749971447818,-3000.0,0.0002347,2]
[365886916,1749971447828,-500.0,0.00023473,2]
[365886917,1749971447837,-252.66161971,0.00023473,2]
[365886918,1749971447846,-502.02931313,0.00023473,2]
[365886919,1749971447856,-158.50228441,0.00023473,2]
[365886920,1749971447866,-500.0,0.00023473,2]
[365886921,1749971447875,-500.0,0.00023473,2]
[365886922,1749971447884,-3000.0,0.0002348,2]
[365886923,1749971447894,-3000.0,0.0002349,2]
[365886924,1749971447903,-3325.41216132,0.00023496,2]
[365886925,1749971447913,-151.0,0.000235,6]
[365886926,1749971447922,-3000.0,0.000235,2]
[365886927,1749971447931,-3000.0,0.0002351,2]
[365886928,1749971447940,-3000.0,0.0002352,2]
[365886929,1749971447950,-3000.0,0.0002353,2]
[365886930,1749971447959,-194.0,0.00023534,2]